fUST/lending_fUST_20240518
["ID","MTS","AMOUNT","RATE_DAILY","PERIOD"]
[327335580,1715992240973,-785.81,0.00016711,2]
[327335583,1715992240983,-785.81,0.00016711,2]
[327335585,1715992240992,-500.0,0.00016712,2]
[327335598,1715992241001,-500.0,0.00016712,2]
[327335600,1715992241122,-500.0,0.00016712,2]
[327335602,1715992241131,-500.0,0.00016712,2]
[327335604,1715992241141,-500.0,0.00016712,2]
[327335606,1715992241151,-500.0,0.00016712,2]
[327335608,1715992241160,-500.0,0.00016712,2]
[327335610,1715992241170,-500.0,0.00016712,2]
[327335612,1715992241183,-500.0,0.00016712,2]
[327335614,1715992241192,-500.0,0.00016712,2]
[327335616,1715992241202,-203.42,0.00016712,2]
[327335618,1715992241211,-500.0,0.00016712,2]
[327335620,1715992241220,-500.0,0.00016712,2]
[327335622,1715992241229,-500.0,0.00016712,2]
[327335624,1715992241238,-500.0,0.00016712,2]
[327335626,1715992241247,-500.0,0.00016712,2]
[327335628,1715992241256,-500.0,0.00016712,2]
[327335630,1715992241265,-500.0,0.00016712,2]
[327335632,1715992241275,-559.93,0.00016712,2]
[327335634,1715992241283,-25457.4,0.00016712,2]
[327335636,1715992241292,-4322.13,0.00016712,2]
[327335638,1715992241302,-3556.23,0.00016712,2]
[327335640,1715992241312,-500.0,0.00016712,4]
[327335642,1715992241320,-2385.23,0.00016712,2]
[327335644,1715992241329,-500.0,0.00016712,2]
[327335646,1715992241338,-504.67,0.00016712,2]
[327335648,1715992241347,-500.0,0.00016712,2]
[327335650,1715992241356,-500.0,0.00016712,2]
[327335652,1715992241366,-500.0,0.00016712,2]
[327335654,1715992241375,-500.0,0.00016712,2]
[327335656,1715992241384,-3297.17,0.00016712,2]
[327335658,1715992241394,-2661.80248145,0.00016712,2]
[327335940,1715992561396,3709.0,0.00019,10]
[327335941,1715992605201,3000.0,0.00019,10]
[327335942,1715992935452,-500.0,0.00016438,4]
[327335943,1715993236122,-273.37336231,9.801e-05,2]
[327335944,1715993236142,-500.3819,0.00013699,2]
[327335945,1715993236162,-2802.49339808,0.00013998,2]
[327335946,1715993246136,-1448.88749142,0.00013998,2]
[327335947,1715993250092,-235.71459205,0.00013998,2]
[327335948,1715993346110,-1136.09949395,0.00010683,2]
[327335949,1715993352117,-1084.37016178,0.00013997,2]
[327335950,1715993352138,-234.26974614,0.00013998,2]
[327335951,1715993352158,-530.0359968,0.00014,2]
[327335952,1715993352177,-9397.51147343,0.00014242,2]
[327335953,1715993352197,-154.84509312,0.00014243,2]
[327335954,1715993352216,-195.05407017,0.00014243,2]
[327335955,1715993352236,-282.93229398,0.00014243,2]
[327335956,1715993352255,-182.33869438,0.00014243,2]
[327335957,1715993352274,-522.94149242,0.00014243,2]
[327335958,1715993352296,-260.64786681,0.00014243,2]
[327335959,1715993352315,-156.2364718,0.00014243,2]
[327335960,1715993352334,-320.79328507,0.00014243,2]
[327335961,1715993352353,-492.79282332,0.00014243,2]
[327335962,1715993352373,-177.69105564,0.00014244,2]
[327335963,1715993352392,-3254.31609697,0.00014244,2]
[327335964,1715993352413,-24900.0,0.00014245,2]
[327335965,1715993352432,-597.4521166,0.00014359,2]
[327335971,1715993414762,234.26974614,0.00014359,2]
[327335972,1715993423400,3254.80151543,0.00014053,2]
[327336342,1715993438423,-1136.09949395,0.00014052,2]
[327336343,1715993438432,-21645.19848457,0.00014053,2]
[327336344,1715993438442,-234.26974614,0.00014359,2]
[327336345,1715993438451,-189.55440765,0.000149,2]
[327336346,1715993438460,-959.94734934,0.000149,2]
[327336347,1715993438470,-956.60652572,0.00014998,2]
[327336348,1715993438480,-1214.21379256,0.00014999,2]
[327336349,1715993438490,-1148.90229176,0.00015,2]
[327336350,1715993438500,-942.40757179,0.00015,2]
[327336351,1715993438510,-80000.0,0.00015,2]
[327336352,1715993438520,-2107.25657902,0.00015,2]
[327336353,1715993438529,-2400.26192892,0.00015,2]
[327336354,1715993438540,-585.2017011,0.00015056,2]
[327336355,1715993438552,-204.2939004,0.00015156,2]
[327336356,1715993438562,-155.41391492,0.00015326,2]
[327336357,1715993438572,-160.85291017,0.00015327,2]
[327336358,1715993438582,-585.2017011,0.00015442,2]
[327336359,1715993438592,-585.2017011,0.00015828,2]
[327336360,1715993438602,-7966.29275223,0.00016,2]
[327336361,1715993438612,-5019.36336665,0.00016,2]
[327336362,1715993438623,-167.8004914,0.00016052,2]
[327336363,1715993438633,-585.2017011,0.00016213,2]
[327336364,1715993438642,-4296.94494415,0.00016338,2]
[327336365,1715993438652,-2000.0,0.00016338,2]
[327336366,1715993438662,-235.71459205,0.00016435,2]
[327336367,1715993438671,-10482.46743188,0.00016438,3]
[327336368,1715993438681,-500.0,0.00016438,2]
[327336369,1715993438691,-500.0,0.00016438,2]
[327336370,1715993438701,-500.0,0.00016438,2]
[327336371,1715993438710,-500.0,0.00016438,2]
[327336372,1715993438719,-500.0,0.00016438,2]
[327336373,1715993438729,-504.49246044,0.00016438,2]
[327336374,1715993438738,-500.0,0.00016438,2]
[327336375,1715993438748,-501.56644249,0.00016438,2]
[327336376,1715993438757,-500.0,0.00016438,2]
[327336377,1715993438767,-376.95872008,0.00016438,2]
[327336378,1715993438776,-496.33271539,0.00016438,2]
[327336379,1715993438785,-500.0,0.00016438,2]
[327336380,1715993438794,-500.0,0.00016438,2]
[327336381,1715993438804,-500.0,0.00016438,2]
[327336382,1715993438814,-500.0,0.00016438,2]
[327336383,1715993438823,-500.0,0.00016438,2]
[327336384,1715993438832,-503.17578765,0.00016438,2]
[327336385,1715993438842,-500.0,0.00016438,2]
[327336386,1715993438851,-500.0,0.00016438,2]
[327336387,1715993438861,-500.0,0.00016438,2]
[327336388,1715993438871,-500.0,0.00016438,2]
[327336389,1715993438880,-500.0,0.00016438,2]
[327336390,1715993438890,-500.0,0.00016438,2]
[327336391,1715993438900,-500.0,0.00016438,2]
[327336392,1715993438909,-500.0,0.00016438,2]
[327336393,1715993438918,-500.0,0.00016438,2]
[327336394,1715993438927,-500.0,0.00016438,2]
[327336395,1715993438937,-500.0,0.00016438,2]
[327336396,1715993438946,-500.0,0.00016438,2]
[327336397,1715993438955,-500.0,0.00016438,2]
[327336398,1715993438964,-500.2004031,0.00016438,2]
[327336399,1715993438974,-500.0,0.00016438,2]
[327336400,1715993438983,-500.0,0.00016438,2]
[327336401,1715993438992,-500.0,0.00016438,2]
[327336402,1715993439002,-500.0,0.00016438,2]
[327336403,1715993439012,-500.0,0.00016438,2]
[327336404,1715993439022,-500.0,0.00016438,2]
[327336405,1715993439031,-500.0,0.00016438,2]
[327336406,1715993439041,-500.0,0.00016438,2]
[327336407,1715993439050,-500.0,0.00016438,2]
[327336408,1715993439060,-500.0,0.00016438,2]
[327336409,1715993439069,-500.0,0.00016438,2]
[327336410,1715993439078,-500.0,0.00016438,2]
[327336411,1715993439088,-500.0,0.00016438,2]
[327336412,1715993439098,-500.0,0.00016438,2]
[327336413,1715993439107,-500.0,0.00016438,2]
[327336414,1715993439118,-500.0,0.00016438,2]
[327336415,1715993439127,-500.0,0.00016438,2]
[327336416,1715993439137,-500.0,0.00016438,2]
[327336417,1715993439146,-500.0,0.00016438,2]
[327336418,1715993439156,-500.0,0.00016438,2]
[327336419,1715993439165,-500.0,0.00016438,2]
[327336420,1715993439174,-500.0,0.00016438,2]
[327336421,1715993439183,-500.0,0.00016438,2]
[327336422,1715993439192,-500.0,0.00016438,2]
[327336423,1715993439201,-649.95,0.00016438,2]
[327336424,1715993439211,-500.0,0.00016438,2]
[327336425,1715993439220,-500.0,0.00016438,2]
[327336426,1715993439229,-500.0,0.00016438,2]
[327336427,1715993439239,-500.0,0.00016438,2]
[327336428,1715993439248,-500.0,0.00016438,2]
[327336429,1715993439258,-500.0,0.00016438,2]
[327336430,1715993439267,-500.0,0.00016438,2]
[327336431,1715993439276,-500.0,0.00016438,2]
[327336432,1715993439285,-500.0,0.00016438,2]
[327336433,1715993439295,-500.0,0.00016438,2]
[327336434,1715993439304,-500.0,0.00016438,2]
[327336435,1715993439314,-500.0,0.00016438,2]
[327336436,1715993439323,-500.0,0.00016438,2]
[327336437,1715993439333,-500.0,0.00016438,2]
[327336438,1715993439342,-500.0,0.00016438,2]
[327336439,1715993439352,-506.42610505,0.00016438,2]
[327336440,1715993439361,-503.02130566,0.00016438,2]
[327336441,1715993439370,-500.0,0.00016438,2]
[327336442,1715993439379,-500.0,0.00016438,2]
[327336443,1715993439389,-500.0,0.00016438,2]
[327336444,1715993439398,-500.0,0.00016438,2]
[327336445,1715993439408,-515.39551987,0.00016438,2]
[327336446,1715993439417,-383.51822389,0.00016438,2]
[327336447,1715993439427,-500.0,0.00016438,2]
[327336448,1715993439437,-500.0,0.00016438,2]
[327336449,1715993439446,-370.76001489,0.00016438,2]
[327336450,1715993439456,-514.1380679,0.00016438,2]
[327336451,1715993439465,-500.0,0.00016438,2]
[327336452,1715993439474,-500.0,0.00016438,2]
[327336453,1715993439484,-511.10521844,0.00016438,2]
[327336454,1715993439493,-500.0,0.00016438,2]
[327336455,1715993439503,-564.9621803,0.00016438,2]
[327336456,1715993439512,-500.0,0.00016438,2]
[327336457,1715993439522,-500.0,0.00016438,2]
[327336458,1715993439533,-504.29461321,0.00016438,2]
[327336459,1715993439546,-500.0,0.00016438,2]
[327336460,1715993439556,-500.0,0.00016438,2]
[327336461,1715993439566,-509.11158163,0.00016438,2]
[327336462,1715993439576,-501.06667719,0.00016438,2]
[327336463,1715993439585,-500.0,0.00016438,2]
[327336464,1715993439596,-500.0,0.00016438,2]
[327336465,1715993439605,-502.51126909,0.00016438,2]
[327336466,1715993439617,-500.0,0.00016438,2]
[327336467,1715993439628,-500.0,0.00016438,2]
[327336468,1715993439638,-500.0,0.00016438,2]
[327336469,1715993439648,-504.6275065,0.00016438,2]
[327336470,1715993439658,-500.0,0.00016438,2]
[327336471,1715993439667,-500.0,0.00016438,2]
[327336472,1715993439677,-531.82153831,0.00016438,2]
[327336473,1715993439686,-500.0,0.00016438,2]
[327336474,1715993439696,-500.79962334,0.00016438,2]
[327336475,1715993439706,-500.90492189,0.00016438,2]
[327336476,1715993439716,-500.0,0.00016438,2]
[327336477,1715993439726,-496.91563878,0.00016438,2]
[327336478,1715993439736,-500.0,0.00016438,2]
[327336479,1715993439745,-500.0,0.00016438,2]
[327336480,1715993439755,-268.35997529,0.00016438,2]
[327336481,1715993439765,-500.0,0.00016438,2]
[327336482,1715993439775,-500.0,0.00016438,2]
[327336483,1715993439785,-500.47313397,0.00016438,2]
[327336484,1715993439794,-500.0,0.00016438,2]
[327336485,1715993439804,-500.0,0.00016438,2]
[327336486,1715993439814,-500.0,0.00016438,2]
[327336487,1715993439824,-500.69953264,0.00016438,2]
[327336488,1715993439835,-500.0,0.00016438,2]
[327336489,1715993439844,-500.0,0.00016438,2]
[327336490,1715993439854,-500.0,0.00016438,2]
[327336491,1715993439866,-500.0,0.00016438,2]
[327336492,1715993439876,-500.0,0.00016438,2]
[327336493,1715993439886,-500.0,0.00016438,2]
[327336494,1715993439895,-501.78493775,0.00016438,2]
[327336495,1715993439905,-500.0,0.00016438,2]
[327336496,1715993439915,-500.0,0.00016438,2]
[327336497,1715993439924,-500.0,0.00016438,2]
[327336498,1715993439934,-500.0,0.00016438,2]
[327336499,1715993439942,-500.0,0.00016438,2]
[327336500,1715993439949,-500.0,0.00016438,2]
[327336501,1715993439958,-500.0,0.00016438,2]
[327336502,1715993439967,-500.0,0.00016438,2]
[327336503,1715993439977,-500.0,0.00016438,2]
[327336504,1715993439987,-500.0,0.00016438,2]
[327336505,1715993439996,-500.0,0.00016438,2]
[327336506,1715993440006,-500.0,0.00016438,2]
[327336507,1715993440016,-3297.17,0.00016438,2]
[327336508,1715993440025,-500.0,0.00016438,2]
[327336509,1715993440035,-500.0,0.00016438,2]
[327336510,1715993440045,-500.0,0.00016438,2]
[327336511,1715993440054,-500.0,0.00016438,2]
[327336512,1715993440063,-500.0,0.00016438,2]
[327336513,1715993440073,-500.0,0.00016438,2]
[327336514,1715993440082,-5896.69,0.00016438,2]
[327336515,1715993440091,-500.0,0.00016438,2]
[327336516,1715993440100,-500.0,0.00016438,2]
[327336517,1715993440109,-500.0,0.00016438,2]
[327336518,1715993440120,-500.0,0.00016438,2]
[327336519,1715993440130,-500.0,0.00016438,2]
[327336520,1715993440139,-500.0,0.00016438,2]
[327336522,1715993440148,-500.0,0.00016438,2]
[327336524,1715993440157,-500.0,0.00016438,2]
[327336525,1715993440167,-500.0,0.00016438,2]
[327336527,1715993440176,-502.35738942,0.00016438,2]
[327336528,1715993440185,-500.0,0.00016438,2]
[327336529,1715993440196,-584.77878106,0.00016438,2]
[327336530,1715993440205,-500.0,0.00016438,2]
[327336531,1715993440215,-1238.78,0.00016438,2]
[327336532,1715993440224,-500.0,0.00016438,2]
[327336533,1715993440234,-642.63361152,0.00016438,2]
[327336534,1715993440243,-500.0,0.00016438,2]
[327336535,1715993440253,-500.0,0.00016438,2]
[327336536,1715993440262,-500.0,0.00016438,2]
[327336537,1715993440272,-500.0,0.00016438,2]
[327336538,1715993440282,-530.42,0.00016438,2]
[327336539,1715993440292,-500.0,0.00016438,2]
[327336540,1715993440301,-500.0,0.00016438,2]
[327336541,1715993440310,-500.0,0.00016438,2]
[327336542,1715993440320,-500.0,0.00016438,2]
[327336544,1715993440330,-500.0,0.00016438,2]
[327336546,1715993440340,-500.0,0.00016438,2]
[327336548,1715993440350,-806.46,0.00016438,2]
[327336550,1715993440360,-500.47322055,0.00016438,2]
[327336552,1715993440371,-500.0,0.00016438,2]
[327336553,1715993440381,-500.0,0.00016438,2]
[327336554,1715993440391,-500.0,0.00016438,2]
[327336555,1715993440401,-158.21638616,0.00016438,2]
[327336556,1715993440410,-500.0,0.00016438,2]
[327336557,1715993440420,-500.0,0.00016438,2]
[327336558,1715993440430,-500.0,0.00016438,2]
[327336559,1715993440439,-500.0,0.00016438,2]
[327336561,1715993440448,-500.0,0.00016438,2]
[327336563,1715993440457,-500.0,0.00016438,2]
[327336564,1715993440467,-500.0,0.00016438,2]
[327336565,1715993440477,-500.0,0.00016438,2]
[327336566,1715993440486,-500.89923349,0.00016438,2]
[327336567,1715993440496,-500.0,0.00016438,2]
[327336568,1715993440505,-500.0,0.00016438,2]
[327336569,1715993440514,-518.52660179,0.00016438,2]
[327336570,1715993440524,-501.73717795,0.00016438,2]
[327336571,1715993440534,-500.0,0.00016438,2]
[327336572,1715993440547,-500.0,0.00016438,2]
[327336573,1715993440557,-500.0,0.00016438,2]
[327336574,1715993440567,-502.33216634,0.00016438,2]
[327336575,1715993440577,-500.0,0.00016438,2]
[327336576,1715993440589,-500.0,0.00016438,2]
[327336577,1715993440599,-206.75056341,0.00016438,2]
[327336578,1715993440608,-500.0,0.00016438,2]
[327336579,1715993440620,-500.0,0.00016438,2]
[327336581,1715993440629,-159.66382287,0.00016438,2]
[327336582,1715993440639,-500.0,0.00016438,2]
[327336583,1715993440649,-500.0,0.00016438,2]
[327336584,1715993440659,-600.94,0.00016438,2]
[327336585,1715993440669,-1057.95,0.00016438,2]
[327336586,1715993440679,-500.0,0.00016438,2]
[327336587,1715993440688,-500.0,0.00016438,2]
[327336588,1715993440698,-500.0,0.00016438,2]
[327336589,1715993440708,-500.0,0.00016438,2]
[327336590,1715993440717,-187.91517803,0.00016438,2]
[327336591,1715993440727,-651.74,0.00016438,2]
[327336592,1715993440736,-500.0,0.00016438,2]
[327336593,1715993440746,-500.0,0.00016438,2]
[327336594,1715993440755,-505.89911409,0.00016438,2]
[327336595,1715993440765,-500.0,0.00016438,2]
[327336596,1715993440774,-170.98823797,0.00016438,2]
[327336597,1715993440784,-500.0,0.00016438,2]
[327336598,1715993440794,-500.0,0.00016438,2]
[327336599,1715993440804,-500.0,0.00016438,2]
[327336600,1715993440813,-500.0,0.00016438,2]
[327336601,1715993440823,-500.0,0.00016438,2]
[327336602,1715993440832,-500.0,0.00016438,2]
[327336603,1715993440961,-500.0,0.00016438,2]
[327336604,1715993440971,-500.0,0.00016438,2]
[327336605,1715993440980,-500.0,0.00016438,2]
[327336606,1715993440989,-500.0,0.00016438,2]
[327336607,1715993440998,-5273.74,0.00016438,2]
[327336608,1715993441008,-400.0,0.00016438,2]
[327336609,1715993441017,-2565.95,0.00016438,2]
[327336610,1715993441027,-375.08,0.00016438,2]
[327336611,1715993441036,-500.0,0.00016438,2]
[327336612,1715993441045,-447.75220669,0.00016438,2]
[327336613,1715993441054,-500.0,0.00016438,2]
[327336614,1715993441064,-687.58,0.00016438,2]
[327336615,1715993441073,-687.58,0.00016438,2]
[327336616,1715993441083,-687.58,0.00016438,2]
[327336617,1715993441092,-687.58,0.00016438,2]
[327336618,1715993441101,-687.58,0.00016438,2]
[327336619,1715993441110,-687.58,0.00016438,2]
[327336620,1715993441121,-687.58,0.00016438,2]
[327336621,1715993441130,-500.0,0.00016438,2]
[327336622,1715993441139,-500.0,0.00016438,2]
[327336623,1715993441148,-637.94,0.00016438,2]
[327336624,1715993441157,-500.0,0.00016438,2]
[327336625,1715993441166,-500.0,0.00016438,2]
[327336626,1715993441175,-3556.23,0.00016438,2]
[327336627,1715993441184,-500.0,0.00016438,2]
[327336628,1715993441194,-4322.13,0.00016438,2]
[327336629,1715993441202,-500.0,0.00016438,2]
[327336630,1715993441212,-500.0,0.00016438,2]
[327336631,1715993441221,-2385.23,0.00016438,2]
[327336632,1715993441231,-25457.4,0.00016438,2]
[327336633,1715993441240,-500.0,0.00016438,2]
[327336634,1715993441250,-503.51167733,0.00016438,2]
[327336635,1715993441260,-500.0,0.00016438,2]
[327336636,1715993441269,-4221.46001999,0.00016442,2]
[327336637,1715993441280,-687.58,0.00016499,2]
[327336638,1715993441289,-12703.0,0.000165,2]
[327336639,1715993441299,-238.94134819,0.000165,2]
[327336640,1715993441308,-637.0,0.00016559,2]
[327336641,1715993441318,-637.0,0.00016559,3]
[327336642,1715993441327,-150.0,0.00016562,3]
[327336643,1715993441337,-150.0,0.00016562,2]
[327336644,1715993441346,-585.2017011,0.00016599,2]
[327336645,1715993441355,-687.58,0.00016611,2]
[327336646,1715993441365,-687.58,0.00016611,2]
[327336647,1715993441374,-52765.61959617,0.00016612,2]
[327336648,1715993441391,-1855.68262489,0.00016612,2]
[327336691,1715993451709,1136.09949395,0.00010538,2]
[327336692,1715993473714,1018.0158829,0.00012458,2]
[327336698,1715993790164,500.0,0.00016438,4]
[327336699,1715994116625,999.0,0.00019,10]
[327336701,1715994348148,-250.19095,0.00013699,2]
[327336702,1715994348167,-0.80186472,0.00014358,2]
[327336705,1715994429168,-158.49484679,9.999e-05,2]
[327336706,1715994429188,-1571.57629509,0.00014358,2]
[327336707,1715994436100,-1188.78395528,0.00014358,2]
[327336708,1715994438108,-3727.78335136,0.00014358,2]
[327336709,1715994441100,-1510.18142551,0.00014358,2]
[327336710,1715994441904,2000.0,0.0002,9]
[327336711,1715994452107,-1075.31434482,0.00014358,2]
[327336712,1715994452128,-2148.72466673,0.00014359,2]
[327336713,1715994452148,-412.21770487,0.00014624,2]
[327336726,1715994548137,-273.37336231,9.9e-05,2]
[327336727,1715994559101,-24900.0,0.00013627,2]
[327336728,1715994559123,-879.00490045,0.00014564,2]
[327336729,1715994559142,-234.26974614,0.00014624,2]
[327336730,1715994559163,-663.34487783,0.00014624,2]
[327336731,1715994559182,-1593.66828313,0.00014625,2]
[327336732,1715994559201,-283.50341374,0.00014626,2]
[327336733,1715994559221,-690.11886562,0.00014626,2]
[327336734,1715994559241,-12929.58202663,0.00014626,2]
[327336735,1715994559260,-154.73694719,0.00014626,2]
[327336736,1715994559279,-653.08641699,0.00014626,2]
[327336737,1715994559298,-1094.84700582,0.00014626,2]
[327336738,1715994559317,-156.96085552,0.00014626,2]
[327336739,1715994559336,-628.92344938,0.00014626,2]
[327336740,1715994559355,-243.62027154,0.00014626,2]
[327336741,1715994559377,-367.82374781,0.00014626,2]
[327336742,1715994559396,-154.85750331,0.00014626,2]
[327336743,1715994559415,-1625.19373538,0.00014627,2]
[327336744,1715994559435,-1434.22692279,0.00014664,2]
[327336745,1715994567107,-1052.02775201,0.00014664,2]
[327336749,1715994574782,266.21224799,0.00014624,2]
[327336753,1715994611514,176.33,0.00010959,2]
[327336762,1715994632635,-27.97923189,0.00014624,2]
[327336763,1715994632645,-195.0672337,0.000149,2]
[327336764,1715994632654,-154.70605849,0.00014998,2]
[327336765,1715994632664,-154.70605849,0.00014998,2]
[327336766,1715994632675,-286.3624082,0.00014999,2]
[327336767,1715994632684,-946.09308403,0.00015,2]
[327336768,1715994632693,-942.40757179,0.00015,2]
[327336769,1715994632703,-80000.0,0.00015,2]
[327336770,1715994632713,-1148.90229176,0.00015,2]
[327336771,1715994632723,-410.11278096,0.00015,2]
[327336772,1715994632733,-195.0672337,0.00015619,2]
[327336773,1715994632742,-630.26465067,0.0001596,2]
[327336774,1715994632751,-188.89226747,0.00015997,2]
[327336775,1715994632761,-840.4039915,0.00015997,2]
[327336776,1715994632771,-2795.18883811,0.00015998,2]
[327336777,1715994632780,-15290.38915976,0.00016,2]
[327336778,1715994632790,-3049.6756407,0.00016,2]
[327336779,1715994632800,-4221.46001999,0.00016236,2]
[327336780,1715994632810,-416.98047207,0.00016314,2]
[327336781,1715994632819,-1681.89915885,0.00016334,2]
[327336782,1715994632829,-195.0672337,0.00016338,2]
[327336783,1715994632838,-2000.0,0.00016338,2]
[327336784,1715994632847,-18526.54607555,0.00016338,2]
[327336874,1715994638754,-4718.2071591,0.00016338,2]
[327336876,1715994638766,-9889.17882534,0.00016338,2]
[327336878,1715994638775,-150.0,0.00016377,2]
[327336880,1715994638784,-212.97795482,0.00016436,2]
[327336882,1715994638793,-10482.46743188,0.00016438,3]
[327336884,1715994638802,-500.0,0.00016438,2]
[327336886,1715994638811,-500.0,0.00016438,2]
[327336887,1715994638820,-423.13095646,0.00016438,2]
[327336889,1715994638830,-500.0,0.00016438,2]
[327336890,1715994638839,-500.0,0.00016438,2]
[327336892,1715994638848,-500.0,0.00016438,2]
[327336894,1715994638858,-500.0,0.00016438,2]
[327336896,1715994638867,-500.0,0.00016438,2]
[327336897,1715994638877,-500.0,0.00016438,2]
[327336898,1715994638891,-500.0,0.00016438,2]
[327336899,1715994638900,-500.0,0.00016438,2]
[327336900,1715994638910,-500.0,0.00016438,2]
[327336901,1715994638918,-500.0,0.00016438,2]
[327336902,1715994638927,-500.0,0.00016438,2]
[327336903,1715994638937,-500.0,0.00016438,2]
[327336904,1715994638947,-496.33271539,0.00016438,2]
[327336905,1715994638957,-500.0,0.00016438,2]
[327336906,1715994638969,-257.5670223,0.00016438,2]
[327336907,1715994638978,-500.0,0.00016438,2]
[327336908,1715994638987,-549.2543388,0.00016438,2]
[327336909,1715994638997,-500.0,0.00016438,2]
[327336910,1715994639007,-500.0,0.00016438,2]
[327336911,1715994639016,-500.0,0.00016438,2]
[327336912,1715994639026,-500.0,0.00016438,2]
[327336913,1715994639035,-500.0,0.00016438,2]
[327336914,1715994639045,-517.37947182,0.00016438,2]
[327336915,1715994639054,-500.36586667,0.00016438,2]
[327336916,1715994639064,-825.88,0.00016438,2]
[327336917,1715994639073,-825.88,0.00016438,2]
[327336918,1715994639083,-825.88,0.00016438,2]
[327336919,1715994639092,-825.88,0.00016438,2]
[327336920,1715994639101,-500.0,0.00016438,2]
[327336921,1715994639111,-825.88,0.00016438,2]
[327336922,1715994639121,-500.0,0.00016438,2]
[327336923,1715994639131,-825.88,0.00016438,2]
[327336924,1715994639141,-825.88,0.00016438,2]
[327336925,1715994639150,-500.0,0.00016438,2]
[327336926,1715994639160,-500.0,0.00016438,2]
[327336927,1715994639169,-500.0,0.00016438,2]
[327336928,1715994639179,-500.0,0.00016438,2]
[327336929,1715994639188,-500.0,0.00016438,2]
[327336930,1715994639198,-500.0,0.00016438,2]
[327336931,1715994639207,-356.76766253,0.00016438,2]
[327336932,1715994639216,-500.0,0.00016438,2]
[327336933,1715994639225,-500.0,0.00016438,2]
[327336934,1715994639235,-536.59569366,0.00016438,2]
[327336935,1715994639244,-500.0,0.00016438,2]
[327336936,1715994639254,-500.0,0.00016438,2]
[327336937,1715994639263,-500.0,0.00016438,2]
[327336938,1715994639273,-500.0,0.00016438,2]
[327336939,1715994639282,-500.0,0.00016438,2]
[327336940,1715994639291,-500.0,0.00016438,2]
[327336941,1715994639301,-500.0,0.00016438,2]
[327336942,1715994639310,-584.66,0.00016438,2]
[327336943,1715994639319,-500.0,0.00016438,2]
[327336944,1715994639328,-500.0,0.00016438,2]
[327336945,1715994639338,-500.0,0.00016438,2]
[327336946,1715994639347,-500.0,0.00016438,2]
[327336947,1715994639356,-500.0,0.00016438,2]
[327336948,1715994639365,-500.0,0.00016438,2]
[327336949,1715994639374,-500.0,0.00016438,2]
[327336950,1715994639384,-500.0,0.00016438,2]
[327336951,1715994639393,-1000.0,0.00016438,2]
[327336952,1715994639402,-504.57706465,0.00016438,2]
[327336953,1715994639412,-500.0,0.00016438,2]
[327336954,1715994639422,-500.0,0.00016438,2]
[327336955,1715994639431,-297.42688912,0.00016438,2]
[327336956,1715994639441,-500.0,0.00016438,2]
[327336957,1715994639451,-500.0,0.00016438,2]
[327336958,1715994639460,-500.0,0.00016438,2]
[327336959,1715994639469,-543.09779564,0.00016438,2]
[327336960,1715994639479,-500.0,0.00016438,2]
[327336961,1715994639489,-500.0,0.00016438,2]
[327336962,1715994639499,-500.0,0.00016438,2]
[327336963,1715994639508,-500.0,0.00016438,2]
[327336964,1715994639517,-500.0,0.00016438,2]
[327336965,1715994639527,-500.0,0.00016438,2]